fUSD/lending_fUSD_20241223
["ID","MTS","AMOUNT","RATE_DAILY","PERIOD"]
[346410333,1734947486933,-2000.52,0.00019726,2]
[346410334,1734947486942,-790.511588,0.00019726,2]
[346410335,1734947486952,-759.322571,0.00019726,2]
[346410336,1734947486961,-500.0,0.00019726,2]
[346410337,1734947486971,-1027.54,0.00019726,2]
[346410338,1734947486981,-500.0,0.00019726,2]
[346410339,1734947486990,-1212.96,0.00019726,2]
[346410340,1734947486999,-4690.64,0.00019726,2]
[346410341,1734947487008,-1551.36,0.00019726,2]
[346410342,1734947487017,-790.511588,0.00019726,2]
[346410343,1734947487026,-610.187804,0.00019726,2]
[346410344,1734947487035,-500.0,0.00019726,2]
[346410345,1734947487044,-2151.37,0.00019726,2]
[346410346,1734947487053,-3565.13,0.00019726,2]
[346410347,1734947487063,-151.0,0.00019726,2]
[346410348,1734947487071,-1987.16,0.00019726,2]
[346410349,1734947487081,-500.0,0.00019726,2]
[346410350,1734947487089,-500.0,0.00019726,2]
[346410351,1734947487099,-500.0,0.00019726,2]
[346410352,1734947487107,-2577.31,0.00019726,2]
[346410353,1734947487116,-500.0,0.00019726,2]
[346410354,1734947487126,-500.0,0.00019726,2]
[346410355,1734947487135,-2174.17,0.00019726,2]
[346410356,1734947487144,-151.0,0.00019726,2]
[346410357,1734947487153,-500.0,0.00019726,2]
[346410358,1734947487162,-706.55,0.00019726,2]
[346410359,1734947487171,-3958.34,0.00019726,2]
[346410360,1734947487180,-2299.62,0.00019726,2]
[346410361,1734947487189,-1764.69,0.00019726,2]
[346410362,1734947487198,-2007.75,0.00019726,2]
[346410363,1734947487443,-500.0,0.00019726,2]
[346410364,1734947487453,-500.0,0.00019726,2]
[346410365,1734947487462,-7432.34,0.00019726,2]
[346410366,1734947487471,-500.0,0.00019726,2]
[346410367,1734947487480,-1192.479609,0.00019726,2]
[346410368,1734947487489,-500.0,0.00019726,2]
[346410369,1734947487498,-500.0,0.00019726,2]
[346410370,1734947487507,-2836.15,0.00019726,2]
[346410371,1734947487517,-860.49,0.00019726,2]
[346410372,1734947487526,-500.0,0.00019726,2]
[346410373,1734947487535,-1192.479609,0.00019726,2]
[346410374,1734947487544,-918.43,0.00019726,2]
[346410375,1734947487553,-500.0,0.00019726,2]
[346410376,1734947487561,-704.76,0.00019726,2]
[346410377,1734947487570,-500.0,0.00019726,2]
[346410378,1734947487579,-750.060373,0.00019726,2]
[346410379,1734947487588,-6500.59,0.00019726,2]
[346410380,1734947487597,-3310.95,0.00019726,2]
[346410381,1734947487606,-1020.79,0.00019726,2]
[346410382,1734947487615,-500.0,0.00019726,2]
[346410383,1734947487624,-500.0,0.00019726,2]
[346410384,1734947487633,-500.0,0.00019726,2]
[346410385,1734947487642,-500.0,0.00019726,2]
[346410386,1734947487651,-4104.92,0.00019726,2]
[346410387,1734947487660,-500.0,0.00019726,2]
[346410388,1734947487669,-500.0,0.00019726,2]
[346410389,1734947487679,-587.769089,0.00019726,2]
[346410390,1734947487688,-500.0,0.00019726,2]
[346410391,1734947487698,-508.79581311,0.00019726,2]
[346410392,1734947487707,-997.82,0.00019726,2]
[346410393,1734947487716,-2247.93,0.00019726,2]
[346410394,1734947487728,-2771.32,0.00019726,2]
[346410395,1734947487738,-6599.66,0.00019726,2]
[346410396,1734947487747,-1386.15,0.00019726,2]
[346410397,1734947487756,-500.0,0.00019726,2]
[346410398,1734947487766,-3623.31,0.00019726,2]
[346410399,1734947487775,-2279.51,0.00019726,2]
[346410400,1734947487787,-708.85,0.00019726,2]
[346410401,1734947487797,-500.0,0.00019726,2]
[346410402,1734947487806,-500.0,0.00019726,2]
[346410403,1734947487821,-500.0,0.00019726,2]
[346410404,1734947487830,-500.0,0.00019726,2]
[346410405,1734947487840,-1814.83,0.00019726,2]
[346410406,1734947487849,-590.43,0.00019726,2]
[346410407,1734947487860,-500.0,0.00019726,2]
[346410408,1734947487870,-205.35036216,0.00019726,2]
[346410409,1734947487879,-508.12201649,0.00019726,2]
[346410410,1734947487888,-151.0,0.00019726,2]
[346410411,1734947487898,-500.0,0.00019726,2]
[346410412,1734947487907,-500.0,0.00019726,2]
[346410413,1734947487917,-502.73430013,0.00019726,2]
[346410414,1734947487926,-500.0,0.00019726,2]
[346410415,1734947487936,-500.0,0.00019726,2]
[346410416,1734947487945,-500.0,0.00019726,2]
[346410417,1734947487954,-151.0,0.00019726,2]
[346410418,1734947487963,-500.0,0.00019726,2]
[346410419,1734947487974,-6981.22,0.00019726,2]
[346410420,1734947487983,-500.0,0.00019726,2]
[346410421,1734947487992,-5854.31,0.00019726,2]
[346410422,1734947488002,-503.35494575,0.00019726,2]
[346410423,1734947488011,-735.005263,0.00019726,2]
[346410424,1734947488020,-500.0,0.00019726,2]
[346410425,1734947488029,-723.67,0.00019726,2]
[346410426,1734947488039,-4584.89,0.00019726,2]
[346410427,1734947488048,-151.0,0.00019726,2]
[346410428,1734947488058,-151.0,0.00019726,2]
[346410429,1734947488067,-500.0,0.00019726,2]
[346410430,1734947488076,-1996.51,0.00019726,2]
[346410431,1734947488085,-686.62,0.00019726,2]
[346410432,1734947488094,-633.77,0.00019726,2]
[346410433,1734947488103,-569.777714,0.00019726,2]
[346410434,1734947488112,-500.0,0.00019726,2]
[346410435,1734947488120,-500.0,0.00019726,2]
[346410436,1734947488129,-8209.14,0.00019726,2]
[346410437,1734947488138,-500.0,0.00019726,2]
[346410438,1734947488147,-500.0,0.00019726,2]
[346410439,1734947488156,-7691.65,0.00019726,2]
[346410440,1734947488165,-500.0,0.00019726,2]
[346410441,1734947488174,-302.77433068,0.00019726,2]
[346410442,1734947488184,-8505.16,0.00019726,2]
[346410443,1734947488193,-500.0,0.00019726,2]
[346410444,1734947488202,-500.0,0.00019726,2]
[346410445,1734947488212,-503.51059307,0.00019726,2]
[346410446,1734947488221,-1509.06,0.00019726,2]
[346410447,1734947488232,-20445.3,0.00019726,2]
[346410448,1734947488242,-500.0,0.00019726,2]
[346410449,1734947488252,-7211.34,0.00019726,2]
[346410450,1734947488261,-1264.19,0.00019726,2]
[346410451,1734947488271,-722.56,0.00019726,2]
[346410452,1734947488281,-500.0,0.00019726,2]
[346410453,1734947488290,-151.0,0.00019726,2]
[346410454,1734947488299,-2863.3,0.00019726,2]
[346410455,1734947488309,-500.0,0.00019726,2]
[346410456,1734947488318,-151.0,0.00019726,2]
[346410457,1734947488327,-1727.82,0.00019726,2]
[346410458,1734947488336,-4153.03,0.00019726,2]
[346410459,1734947488345,-500.0,0.00019726,2]
[346410460,1734947488354,-66769.96,0.00019726,2]
[346410461,1734947488363,-564.25,0.00019726,2]
[346410462,1734947488372,-152.817248,0.00019726,2]
[346410463,1734947488381,-500.0,0.00019726,2]
[346410464,1734947488390,-500.0,0.00019726,2]
[346410465,1734947488399,-521.76,0.00019726,2]
[346410466,1734947488408,-27141.95,0.00019726,2]
[346410467,1734947488417,-500.0,0.00019726,2]
[346410468,1734947488427,-5178.41,0.00019726,2]
[346410469,1734947488436,-500.0,0.00019726,2]
[346410470,1734947488445,-3522.47,0.00019726,2]
[346410471,1734947488455,-3931.5,0.00019726,2]
[346410472,1734947488464,-500.0,0.00019726,2]
[346410473,1734947488475,-500.0,0.00019726,2]
[346410474,1734947488485,-556.70741172,0.00019726,2]
[346410475,1734947488494,-500.0,0.00019726,2]
[346410476,1734947488504,-1538.04,0.00019726,2]
[346410477,1734947488513,-500.0,0.00019726,2]
[346410478,1734947488522,-502.64399133,0.00019726,2]
[346410479,1734947488531,-17003.67,0.00019726,2]
[346410480,1734947488540,-151.0,0.00019726,2]
[346410481,1734947488549,-500.0,0.00019726,2]
[346410482,1734947488558,-500.0,0.00019726,2]
[346410483,1734947488567,-500.0,0.00019726,2]
[346410484,1734947488575,-1888.71,0.00019726,2]
[346410485,1734947488585,-510.75,0.00019726,2]
[346410486,1734947488594,-500.0,0.00019726,2]
[346410487,1734947488603,-500.0,0.00019726,2]
[346410488,1734947488612,-506.08269017,0.00019726,2]
[346410489,1734947488621,-500.0,0.00019726,2]
[346410490,1734947488630,-4567.49,0.00019726,2]
[346410491,1734947488639,-2970.27,0.00019726,2]
[346410492,1734947488647,-500.0,0.00019726,2]
[346410493,1734947488657,-3779.63,0.00019726,2]
[346410494,1734947488666,-500.0,0.00019726,2]
[346410495,1734947488675,-500.0,0.00019726,2]
[346410496,1734947488684,-11220.69,0.00019726,2]
[346410497,1734947488693,-6963.93,0.00019726,2]
[346410498,1734947488703,-500.0,0.00019726,2]
[346410499,1734947488712,-5051.46,0.00019726,2]
[346410500,1734947488721,-500.0,0.00019726,2]
[346410501,1734947488732,-500.0,0.00019726,2]
[346410502,1734947488742,-500.0,0.00019726,2]
[346410503,1734947488751,-201.61288999,0.00019726,2]
[346410504,1734947488760,-500.0,0.00019726,2]
[346410505,1734947488770,-6187.37,0.00019726,2]
[346410506,1734947488783,-1049.33,0.00019726,2]
[346410507,1734947488792,-2346.75,0.00019726,2]
[346410508,1734947488802,-723.309116,0.00019726,2]
[346410509,1734947488811,-10332.61,0.00019726,2]
[346410510,1734947488820,-500.0,0.00019726,2]
[346410511,1734947488830,-5719.000515,0.00019726,2]
[346410512,1734947488839,-500.0,0.00019726,2]
[346410513,1734947488848,-500.0,0.00019726,2]
[346410514,1734947488858,-500.0,0.00019726,2]
[346410515,1734947488867,-151.0,0.00019726,2]
[346410516,1734947488876,-934.12,0.00019726,2]
[346410517,1734947488885,-500.0,0.00019726,2]
[346410518,1734947488894,-1241.12,0.00019726,2]
[346410519,1734947488903,-5719.000515,0.00019726,2]
[346410520,1734947488913,-1298.46,0.00019726,2]
[346410521,1734947488921,-500.0,0.00019726,2]
[346410522,1734947488930,-9373.95,0.00019726,2]
[346410523,1734947488940,-535.6,0.00019726,2]
[346410524,1734947488949,-2761.57,0.00019726,2]
[346410525,1734947488958,-555.06147,0.00019726,2]
[346410526,1734947488967,-500.0,0.00019726,2]
[346410527,1734947488978,-151.0,0.00019726,2]
[346410528,1734947488987,-500.0,0.00019726,2]
[346410529,1734947488996,-5633.19,0.00019726,2]
[346410530,1734947489006,-1005.6,0.00019726,2]
[346410531,1734947489015,-2281.15,0.00019726,2]
[346410532,1734947489024,-1209.18,0.00019726,2]
[346410533,1734947489033,-500.0,0.00019726,2]
[346410534,1734947489042,-1073.51,0.00019726,2]
[346410535,1734947489051,-970.82,0.00019726,2]
[346410536,1734947489060,-500.0,0.00019726,2]
[346410537,1734947489069,-573.92,0.00019726,2]
[346410538,1734947489079,-3349.04,0.00019726,2]
[346410539,1734947489088,-500.0,0.00019726,2]
[346410540,1734947489097,-505.393119,0.00019726,2]
[346410541,1734947489106,-500.0,0.00019726,2]
[346410542,1734947489115,-1068.87,0.00019726,2]
[346410543,1734947489124,-2462.24,0.00019726,2]
[346410544,1734947489133,-4061.8,0.00019726,2]
[346410545,1734947489142,-500.0,0.00019726,2]
[346410546,1734947489151,-769.54,0.00019726,2]
[346410547,1734947489160,-936.98,0.00019726,2]
[346410548,1734947489169,-790.339043,0.00019726,2]
[346410549,1734947489178,-637.59,0.00019726,2]
[346410550,1734947489187,-1974.33,0.00019726,2]
[346410551,1734947489197,-718.83,0.00019726,2]
[346410552,1734947489206,-929.43,0.00019726,2]
[346410553,1734947489216,-151.0,0.00019726,2]
[346410554,1734947489227,-5015.24,0.00019726,2]
[346410555,1734947489236,-500.0,0.00019726,2]
[346410556,1734947489245,-984.51,0.00019726,2]
[346410557,1734947489254,-660.835784,0.00019726,2]
[346410558,1734947489263,-2241.7,0.00019726,2]
[346410559,1734947489273,-500.0,0.00019726,2]
[346410560,1734947489282,-7109.91,0.00019726,2]
[346410561,1734947489291,-500.0,0.00019726,2]
[346410562,1734947489301,-2336.12,0.00019726,2]
[346410563,1734947489310,-500.0,0.00019726,2]
[346410564,1734947489320,-2650.62,0.00019726,2]
[346410565,1734947489329,-500.0,0.00019726,2]
[346410566,1734947489339,-7130.18,0.00019726,2]
[346410567,1734947489348,-895.26,0.00019726,2]
[346410568,1734947489357,-500.0,0.00019726,2]
[346410569,1734947489367,-500.0,0.00019726,2]
[346410570,1734947489376,-294.25470679,0.00019726,2]
[346410571,1734947489386,-500.0,0.00019726,2]
[346410572,1734947489395,-500.0,0.00019726,2]
[346410573,1734947489405,-376.83,0.00019726,2]
[346410574,1734947489414,-2004.424646,0.00019726,2]
[346410575,1734947489423,-25061.96,0.00019726,2]
[346410576,1734947489432,-800.38,0.00019726,2]
[346410577,1734947489442,-500.0,0.00019726,2]
[346410578,1734947489451,-500.0,0.00019726,2]
[346410579,1734947489461,-500.0,0.00019726,2]
[346410580,1734947489470,-500.0,0.00019726,2]
[346410581,1734947489480,-8416.15,0.00019726,2]
[346410582,1734947489489,-579.99,0.00019726,2]
[346410583,1734947489499,-500.0,0.00019726,2]
[346410584,1734947489508,-2004.424646,0.00019726,2]
[346410585,1734947489518,-921.52,0.00019726,2]
[346410586,1734947489527,-500.0,0.00019726,2]
[346410587,1734947489536,-151.0,0.00019726,2]
[346410588,1734947489545,-505.20921209,0.00019726,2]
[346410589,1734947489554,-2140.81,0.00019726,2]
[346410590,1734947489564,-500.0,0.00019726,2]
[346410591,1734947489574,-787.412969,0.00019726,2]
[346410592,1734947489583,-13446.0,0.00019726,2]
[346410593,1734947489593,-500.0,0.00019726,2]
[346410594,1734947489602,-19843.35,0.00019726,2]
[346410595,1734947489611,-658.111156,0.00019726,2]
[346410596,1734947489621,-500.0,0.00019726,2]
[346410597,1734947489630,-500.0,0.00019726,2]
[346410598,1734947489639,-500.0,0.00019726,2]
[346410599,1734947489649,-151.0,0.00019726,2]
[346410600,1734947489658,-8727.4,0.00019726,2]
[346410601,1734947489667,-151.0,0.00019726,2]
[346410602,1734947489676,-557.04,0.00019726,2]
[346410603,1734947489685,-2231.75,0.00019726,2]
[346410604,1734947489694,-547.12960082,0.00019726,2]
[346410605,1734947489704,-500.0,0.00019726,2]
[346410606,1734947489713,-1955.43,0.00019726,2]
[346410607,1734947489724,-812.12,0.00019726,2]
[346410608,1734947489733,-5095.77,0.00019726,2]
[346410609,1734947489742,-150.0,0.00019726,2]
[346410610,1734947489751,-150.0,0.00019731,2]
[346410611,1734947489761,-150.0,0.00019731,2]
[346410612,1734947489771,-150.0,0.00019732,2]
[346410613,1734947489782,-150.0,0.0001974,2]
[346410614,1734947489791,-177.183,0.00019741,2]
[346410615,1734947489801,-200.0,0.00019741,2]
[346410616,1734947489810,-150.133,0.00019741,2]
[346410617,1734947489819,-173.633,0.00019741,2]
[346410618,1734947489829,-160.494,0.00019741,2]
[346410619,1734947489838,-250.0,0.00019741,2]
[346410620,1734947489848,-217.698,0.00019741,2]
[346410621,1734947489857,-204.639,0.00019741,2]
[346410622,1734947489867,-198.871,0.00019741,2]
[346410623,1734947489876,-153.932,0.00019741,2]
[346410624,1734947489886,-150.0,0.00019744,2]
[346410625,1734947489895,-150.0,0.00019747,2]
[346410626,1734947489904,-209.0,0.0001975,2]
[346410627,1734947489914,-210.0,0.0001975,2]
[346410628,1734947489924,-205.0,0.0001975,2]
[346410629,1734947489933,-203.0,0.0001975,2]
[346410630,1734947489943,-150.0,0.00019755,2]
[346410631,1734947489953,-2000.0,0.00019759,2]
[346410632,1734947489962,-200.0,0.00019759,2]
[346410633,1734947489972,-399.22804406,0.00019759,2]
[346410634,1734947489982,-200.0,0.00019759,2]
[346410635,1734947489991,-1500.0,0.00019766,2]
[346410636,1734947490001,-150.0,0.0001977,2]
[346410637,1734947490011,-150.0,0.00019776,2]
[346410638,1734947490020,-437.09,0.00019777,2]
[346410639,1734947490029,-1540.42,0.00019777,2]
[346410640,1734947490039,-437.09,0.00019777,2]
[346410641,1734947490048,-150.0,0.00019778,2]
[346410642,1734947490057,-150.0,0.00019779,2]
[346410643,1734947490067,-168.29,0.0001978,2]
[346410644,1734947490076,-150.0,0.00019783,2]
[346410645,1734947490085,-150.0,0.00019787,2]
[346410646,1734947490095,-150.0,0.00019793,2]
[346410647,1734947490104,-150.0,0.00019793,2]
[346410648,1734947490113,-167.01,0.00019795,2]
[346410649,1734947490122,-5646.02030097,0.000198,2]
[346410650,1734947490131,-109761.72042301,0.000198,2]
[346410651,1734947490140,-24403.002357,0.000198,2]
[346410652,1734947490150,-24403.002357,0.000198,2]
[346410653,1734947490159,-24403.002357,0.000198,2]
[346410654,1734947490168,-24403.002357,0.000198,2]
[346410655,1734947490177,-24403.002357,0.000198,2]
[346410656,1734947490187,-24403.002357,0.000198,2]
[346410657,1734947490197,-24403.002357,0.000198,2]
[346410658,1734947490206,-24403.002357,0.000198,2]
[346410659,1734947490215,-24403.002357,0.000198,2]
[346410660,1734947490226,-24403.002357,0.000198,2]
[346410661,1734947490235,-24403.002357,0.000198,2]
[346410662,1734947490245,-24403.002357,0.000198,2]
[346410663,1734947490254,-24403.002357,0.000198,2]
[346410664,1734947490263,-24403.002357,0.000198,2]
[346410665,1734947490273,-24403.002357,0.000198,2]
[346410666,1734947490282,-24403.002357,0.000198,2]
[346410667,1734947490291,-24403.002357,0.000198,2]
[346410668,1734947490300,-24403.002357,0.000198,2]
[346410669,1734947490309,-24403.002357,0.000198,2]
[346410670,1734947490318,-24403.002357,0.000198,2]
[346410671,1734947490327,-24403.002357,0.000198,2]
[346410672,1734947490337,-24403.002357,0.000198,2]
[346410673,1734947490346,-65365.8508023,0.000198,2]
[346410674,1734947490356,-150.0,0.00019807,2]
[346410675,1734947490365,-333.2763613,0.00019808,2]
[346410676,1734947490375,-150.0,0.00019812,2]
[346410677,1734947490384,-209.610586,0.00019813,2]
[346410678,1734947490394,-150.0,0.00019817,2]
[346410679,1734947490403,-150.0,0.00019819,2]
[346410680,1734947490412,-150.0,0.00019822,2]
[346410681,1734947490422,-150.0,0.00019831,2]
[346410682,1734947490431,-150.0,0.00019843,2]
[346410683,1734947490440,-150.0,0.00019844,2]
[346410684,1734947490450,-150.0,0.00019845,2]
[346410685,1734947490459,-150.0,0.00019846,2]
[346410686,1734947490469,-150.0,0.00019849,2]
[346410687,1734947490480,-150.0,0.00019856,2]
[346410688,1734947490490,-500.0,0.00019861,2]
[346410689,1734947490500,-150.0,0.00019861,2]
[346410690,1734947490510,-150.0,0.00019868,2]
[346410691,1734947490519,-23514.82306532,0.00019875,2]
[346410692,1734947490529,-150.0,0.00019875,2]
[346410693,1734947490538,-3869.02431974,0.000199,2]
[346410694,1734947490548,-15456.44079722,0.000199,2]
[346410695,1734947490557,-22320.94339651,0.000199,2]
[346410696,1734947490566,-50000.0,0.000199,3]
[346410697,1734947490576,-27729.39950225,0.000199,2]
[346410698,1734947490585,-152.58945272,0.000199,2]
[346410699,1734947490595,-150.0,0.000199,2]
[346410700,1734947490604,-168.60596891,0.000199,2]
[346410701,1734947490613,-150.3324914,0.000199,2]
[346410702,1734947490623,-500.0,0.000199,2]
[346410703,1734947490632,-150.06477843,0.000199,2]
[346410704,1734947490642,-500.0,0.000199,2]
[346410705,1734947490650,-150.0,0.000199,2]
[346410706,1734947490659,-1558.0,0.000199,2]
[346410707,1734947490668,-653.88521414,0.000199,2]
[346410708,1734947490678,-653.88521414,0.000199,2]
[346410709,1734947490686,-653.88521414,0.000199,2]
[346410710,1734947490695,-653.88521414,0.000199,2]
[346410711,1734947490705,-653.88521414,0.000199,2]
[346410712,1734947490714,-653.88521414,0.000199,2]
[346410713,1734947490724,-653.88521414,0.000199,2]
[346410714,1734947490734,-653.88521414,0.000199,2]
[346410715,1734947490743,-653.88521414,0.000199,2]
[346410716,1734947490753,-653.88521414,0.000199,2]
[346410717,1734947490763,-653.88521414,0.000199,2]
[346410718,1734947490772,-653.88521414,0.000199,2]
[346410719,1734947490785,-653.88521414,0.000199,2]
[346410720,1734947490796,-653.88521414,0.000199,2]
[346410721,1734947490805,-653.88521414,0.000199,2]
[346410722,1734947490815,-653.88521414,0.000199,2]
[346410723,1734947490825,-653.88521414,0.000199,2]
[346410724,1734947490835,-653.88521414,0.000199,2]
[346410725,1734947490844,-653.88521414,0.000199,2]
[346410726,1734947490853,-653.88,0.000199,2]
[346410727,1734947490863,-500.0,0.000199,2]
[346410728,1734947490874,-150.15060365,0.000199,2]
[346410729,1734947490883,-266.38937523,0.000199,2]
[346410730,1734947490892,-150.0,0.00019905,2]
[346410731,1734947490902,-150.0,0.00019908,2]
[346410732,1734947490913,-150.0,0.00019911,2]
[346410733,1734947490922,-150.0,0.00019911,2]
[346410734,1734947490931,-150.0,0.00019914,2]
[346410735,1734947490941,-150.0,0.00019924,2]
[346410736,1734947490950,-150.0,0.00019928,2]
[346410737,1734947490959,-150.0,0.0001993,2]
[346410738,1734947490969,-150.0,0.00019935,2]
[346410739,1734947490980,-150.0,0.00019943,2]
[346410740,1734947490990,-150.0,0.00019944,2]
[346410741,1734947490999,-150.0,0.00019948,2]
[346410742,1734947491009,-6000.0,0.0001995,3]
[346410743,1734947491018,-150.0,0.00019952,2]
[346410744,1734947491027,-150.0,0.00019956,2]
[346410745,1734947491037,-200.0,0.00019957,2]
[346410746,1734947491046,-200.0,0.00019957,2]
[346410747,1734947491055,-159689.17984,0.0001996,2]
[346410748,1734947491064,-150.0,0.00019962,2]
[346410749,1734947491074,-150.0,0.00019965,2]
[346410750,1734947491083,-150.0,0.00019966,2]
[346410751,1734947491092,-1000.0,0.0001997,2]
[346410752,1734947491102,-1000.0,0.0001997,2]
[346410753,1734947491111,-1000.0,0.0001997,2]
[346410754,1734947491120,-1000.0,0.0001997,2]
[346410755,1734947491130,-1000.0,0.0001997,2]
[346410756,1734947491139,-1000.0,0.0001997,2]
[346410757,1734947491148,-1000.0,0.0001997,2]
[346410758,1734947491158,-1000.0,0.0001997,2]
[346410759,1734947491167,-1000.0,0.0001997,2]
[346410760,1734947491176,-1915.08636567,0.0001997,2]
[346410761,1734947491185,-500.0,0.0001997,2]
[346410762,1734947491195,-500.0,0.0001997,2]
[346410763,1734947491204,-500.0,0.0001997,2]
[346410764,1734947491213,-500.0,0.0001997,2]
[346410765,1734947491222,-701.87219522,0.0001997,2]
[346410766,1734947491233,-514.0,0.0001997,2]
[346410767,1734947491242,-150.0,0.00019978,2]
[346410768,1734947491252,-150.0,0.00019979,2]
[346410769,1734947491261,-10000.0,0.0001998,7]
[346410770,1734947491271,-3512779.00181995,0.0001998,2]
[346410771,1734947491280,-151.0,0.0001998,2]
[346410772,1734947491289,-151.0,0.0001998,2]
[346410773,1734947491299,-238.857697,0.0001998,2]
[346410774,1734947491308,-151.0,0.0001998,2]
[346410775,1734947491520,-151.0,0.0001998,2]
[346410776,1734947491530,-151.0,0.0001998,2]
[346410777,1734947491540,-151.0,0.0001998,2]
[346410778,1734947491549,-153.514245,0.0001998,2]
[346410779,1734947491559,-635.766619,0.0001998,2]
[346410780,1734947491568,-635.766619,0.0001998,2]
[346410781,1734947491577,-203.516561,0.0001998,2]
[346410782,1734947491587,-168.251905,0.0001998,2]
[346410783,1734947491596,-168.251905,0.0001998,2]
[346410784,1734947491606,-154.692223,0.0001998,2]
[346410785,1734947491615,-151.0,0.0001998,2]
[346410786,1734947491625,-1576.451997,0.0001998,2]
[346410787,1734947491634,-151.0,0.0001998,2]
[346410788,1734947491644,-151.0,0.0001998,2]
[346410789,1734947491654,-151.0,0.0001998,2]
[346410790,1734947491663,-151.0,0.0001998,2]
[346410791,1734947491672,-151.0,0.0001998,2]
[346410792,1734947491681,-151.0,0.0001998,2]
[346410793,1734947491691,-151.0,0.0001998,2]
[346410794,1734947491700,-151.0,0.0001998,2]
[346410795,1734947491710,-151.0,0.0001998,2]
[346410796,1734947491719,-151.0,0.0001998,2]
[346410797,1734947491730,-151.0,0.0001998,2]
[346410798,1734947491739,-151.0,0.0001998,2]
[346410799,1734947491749,-151.0,0.0001998,2]
[346410800,1734947491758,-151.0,0.0001998,2]
[346410801,1734947491768,-151.0,0.0001998,2]
[346410802,1734947491777,-164.343216,0.0001998,2]
[346410803,1734947491791,-151.0,0.0001998,2]
[346410804,1734947491801,-151.0,0.0001998,2]
[346410805,1734947491810,-151.0,0.0001998,2]
[346410806,1734947491820,-151.0,0.0001998,2]
[346410807,1734947491830,-151.0,0.0001998,2]
[346410808,1734947491840,-151.0,0.0001998,2]
[346410809,1734947491849,-160.516083,0.0001998,2]
[346410810,1734947491859,-151.0,0.0001998,2]
[346410811,1734947491869,-151.0,0.0001998,2]
[346410812,1734947491878,-156.19206,0.0001998,2]
[346410813,1734947491887,-151.0,0.0001998,2]
[346410814,1734947491897,-151.0,0.0001998,2]
[346410815,1734947491908,-151.0,0.0001998,2]
[346410816,1734947491917,-151.0,0.0001998,2]
[346410817,1734947491927,-154.294488,0.0001998,2]
[346410818,1734947491937,-151.0,0.0001998,2]
[346410819,1734947491947,-245.65,0.0001998,2]
[346410820,1734947491957,-151.0,0.0001998,2]
[346410821,1734947491967,-232.121355,0.0001998,2]
[346410822,1734947491977,-232.121355,0.0001998,2]
[346410823,1734947491986,-290.106131,0.0001998,2]
[346410824,1734947491996,-290.106131,0.0001998,2]
[346410825,1734947492006,-151.0,0.0001998,2]
[346410826,1734947492016,-371.858557,0.0001998,2]
[346410827,1734947492026,-197.651259,0.0001998,2]
[346410828,1734947492035,-197.651259,0.0001998,2]
[346410829,1734947492045,-151.0,0.0001998,2]
[346410830,1734947492055,-151.0,0.0001998,2]
[346410831,1734947492064,-151.0,0.0001998,2]
[346410832,1734947492073,-151.0,0.0001998,2]